bitfinex-derivatives/quotes_ETHF0:USTF0_20251117
["timestamp","ask_amount","ask_price","bid_price","bid_amount"]
[1763341229360,0.00272046,3136.8,3136.7,3.2078]
[1763341230060,0.29332046,3136.8,3136.7,3.2078]
[1763341230361,0.00272046,3136.8,3136.7,3.2078]
[1763341230561,0.2925,3138.0,3136.7,9.2078]
[1763341230861,0.2925,3138.0,3137.6,3.2078]
[1763341231764,0.29509383,3138.0,3137.6,3.21173469]
[1763341233555,0.2906,3138.6,3137.7,1.67464043]
[1763341233864,0.2906,3138.0,3137.6,3.21173469]
[1763341234459,0.29416034,3138.0,3137.6,3.21173469]
[1763341235062,0.29416034,3138.0,3137.6,0.00393469]
[1763341235365,0.4548,3137.7,3137.6,0.00393469]
[1763341235554,3.6626,3137.7,3137.6,0.00393469]
[1763341235761,0.4548,3137.7,3137.6,0.00393469]
[1763341235964,3.6626,3137.7,3137.6,0.00393469]
[1763341236665,0.4548,3137.1,3137.0,0.00478774]
[1763341237061,3.2078,3137.3,3137.0,0.00478774]
[1763341237261,0.4548,3137.1,3137.0,0.00478774]
[1763341237566,3.2078,3137.3,3137.0,0.00478774]
[1763341237763,0.2906,3137.4,3137.0,0.00824491]
[1763341238159,0.2906,3137.4,3137.3,3.2078]
[1763341239470,0.29416034,3138.0,3137.3,3.2078]
[1763341239772,0.2906,3137.4,3137.3,3.2078]
[1763341240576,0.29416034,3138.0,3137.3,3.2078]
[1763341241076,0.2906,3137.4,3137.3,3.2078]
[1763341241574,0.29416034,3138.0,3137.3,3.2078]
[1763341241776,0.2906,3137.4,3137.3,3.2078]
[1763341242474,0.7454,3137.4,3137.0,0.00824491]
[1763341242669,0.4548,3137.1,3137.0,0.00824491]
[1763341243468,0.07203757,3137.1,3137.0,0.00824491]
[1763341245273,3.2078,3137.3,3137.0,0.00824491]
[1763341245575,0.2906,3137.4,3137.0,0.00824491]
[1763341246171,0.2906,3137.4,3137.2,3.2078]
[1763341247676,0.26421159,3137.4,3137.2,3.2078]
[1763341248982,0.4548,3137.3,3137.2,3.2078]
[1763341249281,0.26421159,3137.4,3137.2,3.2078]
[1763341249981,3.47201159,3137.4,3137.0,0.00824491]
[1763341250186,0.41,3137.1,3137.0,0.00824491]
[1763341250889,3.47201159,3137.4,3137.0,0.00824491]
[1763341252786,0.41,3137.1,3137.0,0.00824491]
[1763341253489,0.02725287,3137.1,3137.0,0.00824491]
[1763341253691,3.47201159,3137.4,3137.0,0.00824491]
[1763341253893,0.41,3137.1,3137.0,0.00824491]
[1763341255385,3.47201159,3137.4,3137.0,0.00824491]
[1763341255689,0.41,3137.1,3137.0,0.00824491]
[1763341257782,0.41,3137.1,3137.0,4.491e-05]
[1763341260192,0.2683,3136.5,3136.1,4.9073223]
[1763341260495,0.2683,3136.5,3135.9,3.2078]
[1763341260496,0.6783,3136.0,3135.9,3.2078]
[1763341260684,0.41,3135.3,3135.2,1.1063223]
[1763341260994,0.41,3134.9,3133.9,4.88040282]
[1763341261289,3.2078,3134.7,3133.9,3.21119796]
[1763341261598,3.21257995,3134.7,3134.1,0.00477995]
[1763341262895,0.00477995,3134.7,3134.6,0.4104]
[1763341263383,3.2078,3135.3,3135.2,0.4104]
[1763341263588,3.2078,3136.1,3136.0,0.4104]
[1763341263784,3.2078,3136.5,3136.0,0.4104]
[1763341264589,3.21167475,3136.5,3136.0,0.4104]
[1763341266593,0.41,3136.0,3135.9,0.00477995]
[1763341267497,6.41,3136.0,3134.9,3.2078]
[1763341267698,3.2078,3135.6,3135.0,0.2867]
[1763341268691,3.2078,3135.6,3135.0,0.29147995]
[1763341269495,3.4714,3135.6,3135.0,0.00477995]
[1763341269691,3.4714,3135.6,3135.0,0.29147995]
[1763341269692,3.2078,3135.6,3135.0,0.29147995]
[1763341270093,3.2078,3135.6,3135.5,0.4104]
[1763341270298,3.2078,3135.6,3135.0,0.29147995]
[1763341270799,3.2078,3136.0,3135.5,0.4104]
[1763341271391,3.2078,3136.0,3135.9,0.4104]
[1763341271594,0.00387475,3136.5,3136.4,0.4104]
[1763341271799,0.00387475,3136.5,3136.4,0.41403728]
[1763341272302,0.2683,3138.6,3137.1,0.4104]
[1763341272303,3.2078,3137.2,3137.1,0.4104]
[1763341272690,1.41041073,3138.6,3136.9,3.2078]
[1763341272691,3.2078,3137.8,3136.9,3.2078]
[1763341272898,3.2078,3138.2,3138.1,0.4104]
[1763341273195,0.41,3137.9,3137.8,0.00477995]
[1763341275492,0.41,3137.9,3136.5,3.2078]
[1763341275493,0.41,3137.6,3136.5,3.2078]
[1763341275702,3.2078,3137.4,3136.9,3.2078]
[1763341275998,3.4776,3137.4,3136.5,3.48336435]
[1763341276206,3.2078,3137.0,3136.5,3.48336435]
[1763341276502,0.2698,3137.4,3136.4,0.00841723]
[1763341276503,0.4579,3136.5,3136.4,0.00841723]
[1763341276891,0.00477995,3136.8,3136.4,0.26849032]
[1763341277097,3.2078,3136.6,3136.4,0.00841723]
[1763341277806,3.2078,3136.6,3136.4,0.27298534]
[1763341278008,3.2078,3136.6,3136.4,0.00841723]
[1763341279301,3.2078,3136.6,3136.5,0.4695]
[1763341279898,3.2078,3136.6,3136.4,0.27639146]
[1763341280403,3.2078,3136.6,3136.5,0.4684]
[1763341280601,0.00477995,3136.8,3136.7,0.741]
[1763341281301,3.2078,3137.6,3137.5,0.4684]
[1763341281496,3.2078,3137.6,3137.0,1.50261895]
[1763341281699,3.4761,3138.1,3137.5,0.4684]
[1763341282004,3.2078,3138.1,3137.5,0.4684]
[1763341282200,3.21257995,3138.1,3137.5,0.4684]
[1763341283204,3.21257995,3138.1,3138.0,2.16841895]
[1763341283395,3.21257995,3138.1,3138.0,1.97101895]
[1763341284516,0.00477995,3138.1,3138.0,1.97101895]
[1763341285411,3.93157995,3138.1,3137.4,4.98301895]
[1763341285804,0.4516,3137.5,3137.4,3.2078]
[1763341286211,3.47997995,3138.1,3136.7,0.2726]
[1763341286212,3.2078,3137.6,3137.0,1.50261895]
[1763341286407,3.2078,3137.6,3136.8,3.2078]
[1763341286614,3.2078,3137.6,3136.9,1.50261895]
[1763341288204,3.2078,3137.6,3136.8,3.2078]
[1763341290312,0.4516,3137.6,3137.5,3.2078]
[1763341290511,3.47997995,3138.1,3137.5,3.2078]
[1763341290718,3.21257995,3138.1,3137.5,3.2078]
[1763341291603,0.00477995,3138.1,3137.9,3.2078]
[1763341291802,0.00477995,3138.1,3138.0,0.741]
[1763341292014,0.00477995,3138.1,3138.0,0.4684]
[1763341292202,0.00477995,3138.1,3137.9,3.2078]
[1763341292403,0.719,3138.0,3137.3,3.2078]
[1763341294714,0.4516,3137.4,3137.3,3.2078]
[1763341294914,3.2078,3137.9,3137.3,3.2078]
[1763341295111,0.4516,3137.4,3136.9,3.2078]
[1763341295913,3.2078,3137.9,3136.9,3.2078]
[1763341296615,3.2078,3137.5,3136.9,3.2078]
[1763341298019,3.2078,3137.5,3137.4,0.4684]
[1763341298318,3.2078,3137.5,3137.0,1.50261895]
[1763341298715,3.2078,3137.5,3137.0,5.30361895]
[1763341299712,3.2078,3137.5,3136.9,3.2078]
[1763341300019,0.4516,3137.0,3136.5,3.2078]
[1763341300412,3.2078,3137.4,3136.6,1.50261895]
[1763341300609,3.2078,3137.4,3136.5,3.2078]
[1763341300610,3.2078,3137.4,3137.3,0.4684]
[1763341301210,3.2078,3137.4,3137.0,1.50261895]
[1763341301416,3.2078,3137.4,3137.3,0.4684]
[1763341302422,3.2078,3137.8,3137.4,0.2726]
[1763341302618,3.2078,3137.8,3137.0,1.50261895]
[1763341302823,3.2078,3137.4,3136.9,3.2078]
[1763341303624,3.2078,3137.4,3137.3,0.4684]
[1763341303818,3.6594,3137.4,3137.0,1.50261895]
[1763341304018,3.6594,3137.4,3136.9,3.2078]
[1763341304220,3.6594,3137.4,3136.8,0.2726]
[1763341304221,3.6594,3137.0,3136.4,3.48419146]
[1763341304527,0.4516,3137.0,3136.6,1.50261895]
[1763341304723,0.4516,3136.7,3136.6,1.50261895]
[1763341304929,3.2078,3137.3,3136.4,3.48419146]
[1763341305834,3.2078,3137.3,3136.4,4.98681041]
[1763341306926,0.4516,3136.5,3136.4,3.48419146]
[1763341307225,3.2078,3136.9,3136.4,0.27639146]
[1763341311926,0.4304,3135.4,3135.3,1.67260282]
[1763341312123,3.2078,3135.8,3135.3,0.26416649]
[1763341312325,0.4304,3135.4,3134.8,3.2078]
[1763341312623,3.2078,3135.8,3135.3,0.4055]
[1763341312826,0.1349,3136.5,3135.7,0.4055]
[1763341313023,0.43444077,3135.8,3135.4,1.50261895]
[1763341313229,0.00404077,3135.8,3135.7,0.4055]
[1763341313529,3.2078,3136.9,3135.8,0.4055]
[1763341313726,3.2078,3136.9,3136.2,0.2773]
[1763341313924,3.2078,3136.5,3135.7,3.2078]
[1763341314322,3.21008069,3136.5,3135.7,3.2078]
[1763341314529,0.00477995,3136.4,3136.2,0.2773]
[1763341316228,0.4304,3136.3,3135.7,3.2078]
[1763341319635,0.00228069,3136.5,3136.4,0.4055]
[1763341320228,3.2078,3137.0,3136.9,0.4055]
[1763341321041,3.2078,3137.8,3137.7,0.4055]
[1763341321230,3.21091579,3137.8,3137.7,0.00304281]
[1763341321433,0.00311579,3137.8,3137.7,1.91116176]
[1763341321633,2.5332,3138.3,3138.2,0.4055]
[1763341321936,0.0346,3138.7,3138.2,4.71041895]
[1763341322138,0.6929,3138.6,3138.1,3.2078]
[1763341322437,0.4304,3138.2,3138.1,3.2078]
[1763341322638,0.4304,3138.2,3137.7,0.00304281]
[1763341322639,0.43389416,3138.2,3137.7,0.00304281]
[1763341322942,0.00349416,3138.2,3138.1,3.3639]
[1763341323439,0.00349416,3138.2,3138.1,4.86651895]
[1763341323936,0.0346,3138.7,3138.6,0.1561]
[1763341324238,0.0346,3138.7,3138.6,3.3639]
[1763341325029,0.03779296,3138.7,3138.6,3.62507342]
[1763341325236,3.2078,3139.6,3138.6,9.62507342]
[1763341325438,3.2078,3139.6,3139.1,3.2078]
[1763341326038,0.2625,3139.2,3139.1,3.2078]
[1763341326237,0.26556662,3139.2,3139.1,3.2078]
[1763341326537,0.00306662,3139.2,3139.1,3.3261]
[1763341326739,0.26556662,3139.2,3139.1,3.2078]
[1763341327044,0.4304,3139.1,3139.0,0.00477995]
[1763341327235,3.47336662,3139.2,3139.0,0.00477995]
[1763341327434,0.26556662,3139.2,3139.1,3.2078]
[1763341327634,0.00306662,3139.2,3139.1,3.2078]
[1763341328341,0.2541,3140.4,3139.7,0.1183]
[1763341328541,0.2541,3140.4,3140.3,3.2078]
[1763341329148,1.14211073,3142.4,3140.3,9.3261]
[1763341329447,0.2625,3142.8,3140.8,3.2078]
[1763341329448,0.2625,3141.0,3140.8,3.2078]
[1763341329744,0.4304,3140.7,3140.6,0.00477995]
[1763341330345,3.2078,3140.9,3140.3,0.0036875]
[1763341330346,0.6929,3140.4,3140.3,0.0036875]
[1763341331041,0.2625,3141.0,3140.3,0.0036875]
[1763341331244,0.26727995,3141.0,3140.6,3.2078]
[1763341332644,0.26727995,3141.0,3139.0,11.474]
[1763341332645,0.6929,3139.8,3139.7,3.2078]
[1763341333041,0.6929,3139.8,3139.2,3.2078]
[1763341333951,0.6929,3139.8,3139.6,3.2078]
[1763341334241,0.4304,3139.7,3139.2,3.21486126]
[1763341335047,0.26727995,3141.0,3140.5,0.1231]
[1763341335248,0.26727995,3141.0,3140.7,4.71041895]
[1763341335438,0.26727995,3141.0,3140.3,3.2078]
[1763341336042,0.26727995,3141.0,3140.8,3.2078]
[1763341336448,0.26727995,3141.0,3140.4,3.2078]
[1763341337351,0.26727995,3141.0,3140.8,3.2078]
[1763341337757,0.00477995,3141.0,3140.9,0.128]
[1763341338053,0.6749,3140.9,3140.8,3.2078]
[1763341338549,0.51613,3140.8,3139.9,3.2078]
[1763341338852,0.2505,3140.2,3139.9,3.2078]
[1763341339046,0.2505,3140.2,3139.2,0.00706126]
[1763341339047,0.6548,3139.5,3139.4,3.2078]
[1763341339254,0.2505,3139.5,3139.4,3.2078]
[1763341339649,0.2505,3140.2,3139.4,3.323]
[1763341339849,0.2505,3140.2,3139.9,3.2078]
[1763341340257,3.2078,3140.7,3139.9,3.2078]
[1763341340551,3.2078,3140.7,3140.3,3.2078]
[1763341340752,0.2525,3140.9,3140.3,3.2078]
[1763341341055,0.2525,3140.9,3140.7,3.2078]
[1763341342146,0.00477995,3141.0,3140.7,3.2078]
[1763341343363,0.00477995,3141.0,3140.9,0.1104]
[1763341344349,0.26483937,3141.6,3141.5,0.1104]
[1763341344350,3.937e-05,3141.6,3141.5,0.1104]
[1763341344560,3.2078,3143.1,3141.5,4.98714861]
[1763341344859,3.2078,3142.7,3141.5,3.2078]
[1763341345047,3.2078,3142.7,3141.2,15.752]
[1763341345048,0.2524,3142.2,3141.9,3.2078]
[1763341345452,0.25568979,3142.2,3141.9,3.21016517]
[1763341345744,0.25568979,3142.2,3141.9,0.00236517]
[1763341345949,0.422,3141.8,3141.7,0.00477995]
[1763341347054,0.422,3141.8,3141.7,0.00796912]
[1763341347260,0.25568979,3142.2,3141.7,0.00796912]
[1763341347459,0.422,3141.8,3141.7,0.00796912]
[1763341349056,3.2078,3142.0,3141.7,0.00796912]
[1763341349249,0.25568979,3142.2,3141.8,3.2078]
[1763341349555,0.00328979,3142.2,3142.1,0.108]
[1763341350352,0.00328979,3142.2,3142.1,0.26553547]
[1763341350556,0.00328979,3142.2,3141.8,3.2078]
[1763341351156,0.00328979,3142.2,3141.8,3.47267487]
[1763341353956,0.422,3141.8,3141.7,0.00796912]
[1763341357058,0.422,3141.8,3140.6,15.744]
[1763341357059,0.6744,3141.0,3140.9,3.7239]
[1763341357358,0.422,3141.4,3141.3,0.51604]
[1763341357555,0.6744,3141.0,3140.9,3.2078]
[1763341357757,0.422,3140.9,3140.8,0.51612]
[1763341357956,0.2524,3140.4,3140.3,3.724]
[1763341358350,0.42677995,3140.7,3140.6,0.51616]
[1763341359263,0.42677995,3140.7,3140.3,3.21019473]
[1763341359264,0.422,3140.6,3140.3,3.21019473]
[1763341359469,0.5163,3139.8,3139.4,0.51635]
[1763341359648,3.2078,3139.5,3139.4,0.51635]
[1763341360160,9.2078,3139.5,3138.3,0.82380217]
[1763341360356,3.2078,3138.6,3138.4,0.51652]
[1763341361061,3.2078,3138.6,3138.3,0.00366452]
[1763341361262,3.2078,3138.6,3138.3,0.52019452]
[1763341361464,3.2078,3138.6,3138.4,0.51651]
[1763341362564,0.00477995,3138.8,3138.7,0.51647]
[1763341363068,3.2078,3139.1,3138.3,0.00366452]
[1763341363069,3.2078,3139.1,3139.0,0.51642]
[1763341363461,3.21028494,3139.5,3139.4,0.51636]
[1763341363762,3.21028494,3139.5,3139.0,0.51642]
[1763341364060,3.2078,3139.1,3138.9,0.51644]
[1763341364364,3.21028494,3139.5,3139.3,0.51636]
[1763341366457,3.21028494,3139.5,3138.8,0.2436]
[1763341366662,3.21028494,3139.5,3138.3,0.00366452]
[1763341366663,3.2078,3139.0,3138.3,0.00366452]
[1763341366859,3.2078,3138.6,3138.4,0.51651]
[1763341367060,3.2078,3138.6,3138.3,0.00366452]
[1763341367252,3.2078,3138.6,3138.4,0.51651]
[1763341367666,3.2078,3138.6,3138.3,0.00366452]
[1763341367865,3.2078,3138.6,3138.4,0.51651]
[1763341368662,9.2078,3138.6,3137.0,3.2078]
[1763341368867,1.66894861,3139.1,3137.8,0.51661]
[1763341368868,3.2078,3138.0,3137.8,0.51661]
[1763341369568,0.00248494,3139.5,3138.7,0.51646]
[1763341369766,3.2078,3138.8,3138.7,0.00224313]
[1763341372465,3.2078,3139.2,3139.1,0.51641]
[1763341373271,3.2078,3139.2,3138.9,0.51642]
[1763341373469,0.51641,3139.1,3138.7,0.00224313]
[1763341373768,3.2078,3139.2,3138.7,0.00224313]
[1763341374074,3.2078,3138.8,3138.7,0.51870313]
[1763341375964,3.2078,3139.2,3139.1,0.51641]
[1763341377458,3.2078,3139.2,3139.1,1.00161]
[1763341378270,3.2078,3139.2,3139.1,0.51641]
[1763341378472,3.2078,3139.2,3138.7,0.00224313]
[1763341378667,0.00248494,3139.5,3138.7,0.00224313]
[1763341378668,3.2078,3138.8,3138.7,0.00224313]
[1763341380266,3.2078,3139.2,3138.7,0.00224313]
[1763341380462,3.2078,3139.2,3139.0,0.51641]
[1763341381369,3.2078,3139.2,3138.7,0.00224313]
[1763341381577,3.2078,3138.8,3138.7,0.00224313]
[1763341382173,3.2078,3138.8,3138.7,0.51871313]
[1763341383763,3.2078,3138.8,3138.7,0.00224313]
[1763341384167,3.2078,3138.8,3138.7,0.48744313]
[1763341384476,0.00248494,3139.5,3139.4,0.51636]
[1763341384666,3.21028494,3139.5,3139.4,0.51636]
[1763341385272,0.00248494,3139.5,3139.4,0.51636]
[1763341385460,0.00248494,3139.5,3139.4,1.00156]
[1763341385867,0.00248494,3139.5,3139.4,0.51636]
[1763341386774,0.00248494,3139.5,3139.4,1.00156]
[1763341387169,0.00248494,3139.5,3139.4,0.51636]
[1763341388879,3.2078,3140.4,3140.3,0.51621]
[1763341389872,3.2116305,3140.4,3140.3,0.51621]
[1763341390075,3.2116305,3140.4,3140.3,1.00141]
[1763341390276,3.2116305,3140.4,3140.3,0.51621]
[1763341391875,0.0038305,3140.4,3140.3,1.00141]
[1763341393177,0.0038305,3140.4,3140.3,0.51621]
[1763341393574,0.00477995,3140.7,3140.6,1.00136]
[1763341394685,0.00725076,3140.7,3140.6,1.00136]
[1763341395380,0.00725076,3140.7,3140.6,0.51616]
[1763341395585,0.00725076,3140.7,3140.6,1.00136]
[1763341395786,0.00725076,3140.7,3140.6,0.51616]
[1763341396178,0.00725076,3140.7,3140.6,1.00136]
[1763341397075,0.00725076,3140.7,3140.6,0.51616]
[1763341397275,0.00725076,3140.7,3140.0,0.00477995]
[1763341397481,3.2078,3140.2,3140.0,0.00477995]
[1763341397882,3.72403,3140.2,3140.0,0.00477995]
[1763341398283,3.2078,3140.2,3140.0,0.00477995]
[1763341398482,3.2078,3140.2,3140.0,0.52102995]
[1763341398684,3.2078,3140.2,3140.0,0.00477995]
[1763341398884,3.72403,3140.2,3140.0,0.00477995]
[1763341399484,0.51626,3140.0,3139.5,0.51633]
[1763341399685,3.2078,3140.2,3139.6,0.51631]
[1763341399980,3.2078,3139.8,3139.2,3.474]
[1763341400183,3.2078,3139.8,3139.6,0.51632]
[1763341402287,3.2078,3139.8,3139.4,0.52112995]
[1763341402487,0.51634,3139.6,3139.4,0.00477995]
[1763341402683,0.51645,3138.9,3138.7,0.00224313]
[1763341402984,3.2078,3138.8,3138.7,0.00224313]
[1763341404095,9.2078,3138.8,3137.9,3.2078]
[1763341404386,0.00477995,3139.1,3137.4,3.5182]
[1763341404387,3.2078,3138.2,3137.4,3.5182]
[1763341404690,3.2078,3138.2,3138.0,0.3104]
[1763341404985,3.21025879,3138.2,3138.0,0.31429411]
[1763341405380,3.21025879,3138.2,3138.0,0.83087411]
[1763341405581,0.00245879,3138.2,3138.1,0.5044]
[1763341406294,0.00245879,3138.2,3138.0,0.31429411]
[1763341406491,0.00245879,3138.2,3138.0,0.83087411]
[1763341406887,0.00245879,3138.2,3138.1,0.5044]
[1763341407799,0.00245879,3138.2,3138.0,0.83087411]
[1763341408181,0.00245879,3138.2,3138.0,0.31429411]
[1763341408378,0.00245879,3138.2,3138.0,0.83087411]
[1763341408678,0.00245879,3138.2,3138.0,0.31429411]
[1763341408882,0.00245879,3138.2,3138.0,0.83087411]
[1763341409091,0.00245879,3138.2,3138.0,0.31429411]
[1763341409284,0.51901879,3138.2,3138.0,0.00389411]
[1763341409789,0.00245879,3138.2,3138.0,0.31429411]
[1763341409987,0.00245879,3138.2,3138.0,0.83087411]
[1763341410693,0.00245879,3138.2,3138.0,0.31429411]
[1763341411195,0.00245879,3138.2,3136.3,15.61581443]
[1763341411196,0.51667,3137.5,3136.8,0.3104]
[1763341411396,3.2078,3137.5,3136.8,0.3104]
[1763341411600,3.2078,3137.1,3136.8,0.3104]
[1763341412091,0.51678,3136.9,3136.3,0.51686]
[1763341412294,0.51678,3136.9,3136.3,0.0055054]
[1763341412295,3.2078,3136.5,3136.3,0.0055054]
[1763341412789,3.2078,3136.4,3136.3,0.0055054]
[1763341413891,0.51691,3136.1,3135.4,0.517]
[1763341414191,0.51699,3135.6,3135.0,0.82748]
[1763341414391,3.2078,3135.8,3135.2,0.51704]
[1763341414782,3.72476,3135.8,3135.0,0.3104]
[1763341414987,3.72880147,3135.8,3135.2,0.51704]
[1763341415383,3.72880147,3135.8,3135.0,0.00331374]
[1763341415384,0.51706,3135.2,3135.0,0.00331374]
[1763341415594,3.2078,3135.3,3134.3,3.2078]
[1763341415799,10.12010629,3135.7,3133.8,3.5182]
[1763341415800,0.5172,3134.4,3133.8,3.5182]
[1763341415995,5.22599946,3134.6,3133.8,4.03547]
[1763341416191,5.22600946,3134.6,3133.8,3.5182]
[1763341416493,0.51727,3133.9,3133.7,0.00390935]
[1763341416692,0.51732,3133.6,3132.7,3.2078]
[1763341416902,3.2078,3133.4,3132.7,3.2078]
[1763341417101,3.2078,3133.0,3132.0,3.2078]
[1763341417395,3.2078,3133.0,3132.5,0.82788]
[1763341417597,3.21035682,3133.0,3132.5,0.31374285]
[1763341417791,3.2078,3132.6,3132.5,0.00334285]
[1763341418298,0.00255682,3133.0,3132.5,0.00334285]
[1763341418489,0.00255682,3133.0,3132.5,0.31374285]
[1763341418688,3.2078,3132.6,3132.5,0.00334285]
[1763341419493,3.21035682,3133.0,3132.8,0.51743]
[1763341419693,3.21035682,3133.0,3132.6,0.51747]
[1763341419893,3.21035682,3133.0,3132.5,0.31374285]
[1763341420093,3.21035682,3133.0,3132.5,0.83122285]
[1763341420299,3.21035682,3133.0,3132.7,0.51745]
[1763341421002,3.21035682,3133.0,3132.5,0.31374285]
[1763341421292,3.2078,3132.6,3132.5,0.00334285]
[1763341421498,3.2078,3132.8,3132.6,0.51748]
[1763341421903,0.00255682,3133.0,3132.9,0.51743]
[1763341422494,0.00255682,3133.0,3132.7,0.51746]
[1763341422694,3.2078,3132.9,3132.5,0.31374285]
[1763341422998,0.51754,3132.3,3131.8,0.3104]
[1763341423193,3.2078,3132.3,3131.8,0.3104]
[1763341423595,3.2078,3132.3,3131.8,0.82801]
[1763341423898,3.2078,3132.3,3131.8,0.3104]
[1763341424090,3.2078,3132.3,3131.9,0.51759]
[1763341424287,3.2078,3132.3,3131.8,0.3141165]
[1763341425002,3.2078,3132.3,3132.2,0.51754]
[1763341425794,3.2078,3132.8,3132.7,0.51746]
[1763341426397,0.00255682,3133.0,3132.9,0.51743]
[1763341426610,3.2078,3134.3,3134.2,0.51721]
[1763341426896,3.2078,3135.8,3135.3,0.3104]
[1763341427099,11.491,3137.1,3135.7,3.2078]
[1763341427100,3.2078,3136.4,3135.7,3.2078]
[1763341427296,3.2078,3136.4,3136.0,0.3104]
[1763341427486,3.2078,3136.4,3136.3,3.2078]
[1763341427487,0.00342631,3136.4,3136.3,3.2078]
[1763341427687,0.00342631,3136.4,3136.0,0.00728449]
[1763341427894,0.51697,3135.7,3135.3,0.3104]
[1763341428102,0.517,3135.6,3135.0,3.2078]
[1763341428799,3.2078,3135.7,3135.0,3.2078]
[1763341428995,0.51706,3135.2,3135.0,3.21026935]
[1763341429199,3.2078,3135.7,3135.1,3.2078]
[1763341429497,3.2078,3135.7,3135.2,0.2822]
[1763341429705,0.51695,3135.9,3135.2,0.2822]
[1763341430203,0.51695,3135.9,3135.1,3.72486]
[1763341430204,3.2078,3135.7,3135.1,3.2078]
[1763341430501,3.2078,3135.7,3135.0,0.00246935]
[1763341430904,0.517,3135.6,3135.2,3.2078]
[1763341431304,0.51703,3135.4,3135.2,3.2078]
[1763341432508,3.2078,3135.7,3135.2,3.2078]
[1763341432806,0.51703,3135.4,3135.2,3.2078]
[1763341434497,0.51706,3135.1,3135.0,0.00246935]
[1763341436000,3.2078,3135.3,3134.6,3.49]
[1763341436507,0.51711,3134.9,3134.6,3.49]
[1763341437098,0.51712,3134.8,3134.6,3.49258137]
[1763341437709,0.51709,3135.0,3134.6,3.49258137]
[1763341437908,0.51711,3134.9,3134.6,3.49258137]
[1763341438207,0.51712,3134.8,3134.6,3.21038137]
[1763341438607,0.51712,3134.8,3134.2,3.2078]
[1763341438608,0.5172,3134.3,3134.2,3.2078]
[1763341438811,0.51733,3133.6,3133.4,3.2078]
[1763341439011,1.93906017,3134.3,3132.5,3.2078]
[1763341439012,0.51741,3133.0,3132.5,3.2078]
[1763341439304,0.00478767,3133.1,3132.9,3.2078]
[1763341439810,0.00752023,3133.1,3132.9,3.21128555]
[1763341440908,0.51751,3132.4,3132.3,3.2078]
[1763341441412,0.51759,3132.0,3131.8,0.2822]
[1763341441710,1.93906017,3132.1,3131.4,3.2078]
[1763341441909,0.51766,3131.6,3131.4,3.21041538]
[1763341442112,3.2078,3131.6,3130.8,3.2078]
[1763341442307,3.2078,3131.2,3130.4,0.2822]
[1763341442499,1.94384784,3131.5,3129.8,3.2078]
[1763341442500,0.51782,3130.6,3129.8,3.2078]
[1763341442699,0.51784,3130.5,3130.0,3.2078]
[1763341442910,3.2078,3130.8,3130.0,3.2078]
[1763341443113,3.72558,3130.8,3130.0,3.2078]
[1763341443315,3.21079612,3130.8,3130.0,3.21135301]
[1763341443517,0.51787,3130.3,3130.0,3.21135301]
[1763341443810,0.51783,3130.5,3130.0,3.21135301]
[1763341444008,3.72857612,3130.8,3130.0,3.21135301]
[1763341444220,3.21079612,3130.8,3130.0,3.72925301]
[1763341444406,0.51782,3130.6,3130.0,3.21135301]
[1763341444611,18.97979612,3130.8,3130.0,3.21135301]
[1763341444819,0.51783,3130.5,3130.0,3.21135301]
[1763341445021,0.51784,3130.4,3130.0,3.21135301]
[1763341445317,15.77,3130.6,3130.0,3.21135301]
[1763341445517,0.51782,3130.5,3130.0,0.00355301]
[1763341445713,0.51785,3130.4,3130.0,0.00355301]
[1763341445911,0.51789,3130.1,3130.0,0.00355301]
[1763341446109,3.2078,3130.4,3130.0,0.00355301]
[1763341446618,3.2078,3130.4,3129.0,0.2822]
[1763341446619,1.93906017,3130.3,3129.0,0.2822]
[1763341446922,3.2078,3130.1,3129.7,0.2822]
[1763341447111,3.2078,3130.1,3129.9,0.51791]
[1763341447315,0.00299612,3130.8,3130.4,0.2822]
[1763341447716,0.51779,3130.7,3130.4,0.28535442]
[1763341448019,0.00299612,3130.8,3130.4,0.28535442]
[1763341448524,0.00299612,3130.8,3130.5,3.72562]
[1763341448728,0.00299612,3130.8,3130.5,3.2078]
[1763341448915,0.00299612,3130.8,3130.6,0.5178]
[1763341449110,0.00299612,3130.8,3130.5,3.2078]
[1763341449111,4.326,3131.4,3131.1,0.2822]
[1763341449315,0.00478767,3131.5,3131.3,3.72549]
[1763341449516,0.00478767,3131.5,3131.3,3.2078]
[1763341449910,0.5177,3131.3,3131.1,0.2822]
[1763341450218,0.51772,3131.2,3130.8,3.2078]
[1763341450625,0.00371129,3131.3,3131.1,0.2822]
[1763341451122,0.51771,3131.2,3130.8,3.2078]
[1763341451310,0.00371129,3131.3,3130.8,3.2078]
[1763341451512,0.00371129,3131.3,3131.1,0.2822]
[1763341451713,0.52140129,3131.3,3130.8,3.2078]
[1763341451918,0.51782,3130.5,3130.4,0.00315442]
[1763341452120,3.72562,3130.5,3130.4,0.00315442]
[1763341452316,3.2078,3130.5,3130.4,0.28535442]
[1763341452513,3.72562,3130.5,3130.4,0.00315442]
[1763341453115,3.2078,3130.5,3130.4,0.28535442]
[1763341453327,3.72555,3131.0,3130.4,0.28535442]
[1763341453513,3.2078,3131.0,3130.4,0.28535442]
[1763341453717,0.52141129,3131.3,3131.1,0.2822]
[1763341453718,0.00371129,3131.3,3131.1,0.2822]
[1763341453923,0.00371129,3131.3,3131.1,0.79992]
[1763341454126,14.598,3132.0,3131.5,0.51764]
[1763341454419,14.598,3132.0,3131.7,3.2078]
[1763341454723,14.598,3132.0,3131.3,3.2078]
[1763341454929,14.598,3132.0,3131.4,0.51766]
[1763341455229,14.60676308,3132.0,3131.4,0.00478767]
[1763341455430,15.12434308,3132.0,3131.4,0.00478767]
[1763341455924,0.51761,3131.8,3131.4,0.00478767]
[1763341456425,14.60676308,3132.0,3131.4,0.00478767]
[1763341456634,15.12433308,3132.0,3131.4,0.00478767]
[1763341456821,16.11575517,3132.0,3131.4,0.00478767]
[1763341457227,1.50899209,3131.6,3131.4,0.00478767]
[1763341457521,2.02664209,3131.6,3131.4,0.00478767]